Cogmind - Beta 13 @@@ ROGUE MODE // 2024.07.10 @ 01:14:24 Player: GR4C3 Result: Destroyed by Y-45 Defender with Heavy Assault Rifle Performance ------------- Evolutions (1) 500 Regions Visited (2) 400 Robots Destroyed (27) 135 Value Destroyed (579) 579 Prototype IDs (0) 0 Alien Tech Used (0) 0 Bonus (0) 0 TOTAL SCORE: 1614 Bonus ------- None Cogmind --------- Core Integrity 0/400 Matter 300/300 Energy 99/100 System Corruption 0% Temperature Cool (9) Movement Core (50) Location -9/Materials Parts ------- > --- POWER (1) -------- (None) > --- PROPULSION (3) --- (None) > --- UTILITY (3) ------ (None) > --- WEAPON (2) ------- Light Assault Rifle > --- INVENTORY (5) ---- Light Ion Engine Aluminum Leg Mini Grenade Launcher Katana Peak State ------------ > --- POWER ------------ Ion Engine > --- PROPULSION ------- Aluminum Leg Aluminum Leg Aluminum Leg > --- UTILITY ---------- Heat Sink Sensor Array Improved Terrain Scanner > --- WEAPON ----------- EM Pulse Gun Katana > --- INVENTORY -------- Light Ion Engine Aluminum Leg Light Assault Rifle Light Assault Rifle [Rating: 13] Favorites ----------- Power Light Ion Engine Engine Light Ion Engine Propulsion Aluminum Leg Leg Aluminum Leg Utility Sensor Array Device Sensor Array Storage Small Storage Unit Weapon Assault Rifle Energy Gun EM Pulse Gun Ballistic Gun Assault Rifle Launcher Mini Grenade Launcher Slashing Weapon Katana Build | -11 -10 -9 ------- Run | Yrd Mat Mat Slots Evolved 2 | . . 2 Power . | . . . Propulsion 1 | . . 1 Utility 1 | . . 1 Weapon . | . . . Parts Attached 25 | 8 3 14 Power 3 | 1 . 2 Engine 3 | 1 . 2 Core . | . . . Reactor . | . . . Propulsion 5 | 2 . 3 Treads . | . . . Leg 5 | 2 . 3 Wheel . | . . . Hover . | . . . Flight . | . . . Utility 9 | 3 3 3 Device 8 | 2 3 3 Storage 1 | 1 . . Processor . | . . . Hackware . | . . . Protection . | . . . Artifact . | . . . Weapon 8 | 2 . 6 Energy Gun 2 | . . 2 Energy Cannon . | . . . Ballistic Gun 4 | 2 . 2 Ballistic Cannon . | . . . Launcher 1 | . . 1 Special Weapon . | . . . Impact Weapon . | . . . Slashing Weapon 1 | . . 1 Piercing Weapon . | . . . Special Melee Weapon . | . . . Unidentified Prototypes . | . . . Parts Lost 14 | . . 14 Power 2 | . . 2 Propulsion 3 | . . 3 Utility 5 | . . 5 Weapon 4 | . . 4 Highest Loss Streak 8 | . . 8 To Critical Strikes . | . . . Average Slot Usage (%) 92 | . 100 86 Engine 12 | . 14 10 Leg 28 | . 28 28 Device 27 | . 28 27 Energy Gun 4 | . . 8 Ballistic Gun 17 | . 28 8 Naked Turns . | . . . Heaviest Build 12 | 12 8 12 Greatest Support 30 | 20 20 30 Greatest Overweight (x) 1 | . . 1 Average Overweight (x) . | . . . Largest Inventory Capacity 8 | 8 5 5 Average Capacity 5 | 6 5 5 Most Carried 5 | 4 5 5 Average Carried 3 | 1 4 4 Final Capacity 5 | 5 5 5 Final Carried 5 | 2 5 4 Class Distribution -------------------- 74% | Mutant 25% | Scavenger-Mutant Dominant Class ---------------- Mutant | -10/Materials Scavenger-Mutant | -9/Materials Resources | -11 -10 -9 ----------- Run | Yrd Mat Mat Matter Collected 636 | 308 74 254 Remotely . | . . . Salvage Created 862 | 114 99 649 Parts 53 | 11 6 36 Haulers Intercepted 1 | . . 1 Recyclers Shooed 1 | . 1 . Parts Field Recycled . | . . . Retrieved Matter . | . . . Parts Self-Destructed . | . . . Prevented . | . . . Kills | -11 -10 -9 ------- Run | Yrd Mat Mat Combat Hostiles Destroyed 16 | . 2 14 Melee 3 | . . 3 Guns 9 | . 2 7 AOE 4 | . . 4 Classes Destroyed 8 | 2 2 4 Worker 4 | . . 4 Tunneler 3 | 3 . . Hauler 1 | . . 1 Recycler 2 | 1 . 1 Watcher 1 | . 1 . Swarmer 3 | . . 3 Grunt 12 | . 2 10 Duelist 1 | . . 1 Best Kill Streak 5 | 4 1 5 Combat Bots Only 3 | . 1 3 Max Kills in Single Turn 2 | 1 1 2 Gunslinging . | . . . Exploded 2 | . . 2 Melee 1 | . . 1 Uniques/NPCs Destroyed . | . . . Combat | -11 -10 -9 -------- Run | Yrd Mat Mat Hostile Shots Fired 165 | . 21 144 Missed 53 | . 9 44 Damage Taken 1455 | . 158 1297 Core 431 | . 25 406 Absorbed by Shields . | . . . Core Remaining (%) 95 | 100 90 . Volleys Fired 70 | 7 20 43 Largest 2 | 2 2 2 Hottest 85 | 40 40 85 Shots Fired 119 | 14 39 66 Gun 112 | 14 39 59 Cannon . | . . . Launcher 7 | . . 7 Special . | . . . Kinetic 86 | 14 39 33 Thermal 5 | . . 5 Explosive 7 | . . 7 Electromagnetic 21 | . . 21 Robot Hit Streak 8 | 5 8 7 Robot Miss Streak 5 | 1 3 5 Penetration Max . | . . . Secondary Targets . | . . . Shots Hit Robots 84 | 10 27 47 Core Hits 46 | 6 9 31 Critical Kills . | . . . Critical Parts Destroyed 2 | 1 . 1 Critical Strikes 4 | 1 . 3 Destroy 2 | 1 . 1 Sever 2 | . . 2 Melee Attacks 13 | . . 13 Impact . | . . . Slashing 13 | . . 13 Piercing . | . . . Sneak Attacks 2 | . . 2 Combat Hostiles . | . . . Follow-up Attacks . | . . . Damage Inflicted 1774 | 119 298 1357 Guns 868 | 119 296 453 Cannons . | . . . Explosions 594 | . . 594 Melee 308 | . . 308 Ramming 4 | . 2 2 Kinetic 632 | 119 296 217 Thermal 110 | . . 110 Explosive 534 | . . 534 Electromagnetic 186 | . . 186 Impact . | . . . Slashing 308 | . . 308 Piercing . | . . . Highest Corruption 2 | . 2 . Average Corruption 2 | . 2 . Corruption Purged . | . . . Corruption Blocked . | . . . Effects 7 | . 7 . Message Errors 1 | . 1 . Matter Fused 1 | . 1 . Energy Discharges 3 | . 3 . Data Loss (minor) 1 | . 1 . Weapon Failures 1 | . 1 . Overload Shots . | . . . Overflow Damage 31 | . . 31 Projectiles . | . . . Explosions 11 | . . 11 Melee 20 | . . 20 Knockbacks . | . . . Impact . | . . . Kinetic . | . . . Secondary . | . . . Self-Inflicted Damage 54 | . . 54 Shots 2 | . . 2 Rammed . | . . . Targets Rammed 2 | . 1 1 Kicked 2 | . 1 1 Crushed . | . . . Highest Temperature 52 | . 27 52 Average Temperature 14 | . 9 16 Received Heat Transfer 768 | . 132 636 Siege Activations . | . . . Robots Corrupted . | . . . Combat Hostiles . | . . . Parts Fried . | . . . Impact Corruptions . | . . . Robots Melted . | . . . Combat Hostiles . | . . . Parts Melted . | . . . Heat Transferred 211 | . . 211 Parts Sabotaged . | . . . Parts Stolen . | . . . Parts Stripped . | . . . Power Chain Reactions 1 | . . 1 Alert | -11 -10 -9 ------- Run | Yrd Mat Mat Peak Influence 193 | 20 85 193 Initial 13 | . 13 . Average 56 | 7 60 63 Maximum Alert Level . | . . . Low Security (%) 100 | 100 100 100 Level 1 . | . . . Level 2 . | . . . Level 3 . | . . . Level 4 . | . . . Level 5 . | . . . High Security . | . . . Max Security . | . . . Squads Dispatched 2 | . . 2 Investigation . | . . . Extermination . | . . . Reinforcement 2 | . . 2 Assault . | . . . Garrison . | . . . Intercept . | . . . Searches Triggered . | . . . Construction Impeded . | . . . Haulers Reinforced . | . . . Active Scanning Responses . | . . . Cargo Convoy Interrupts . | . . . Stealth | -11 -10 -9 --------- Run | Yrd Mat Mat Distress Signals 3 | . . 3 Communications Jammed . | . . . Distress Signals . | . . . Times Spotted 34 | . 5 29 Peak Tracking Total 9 | . 3 9 Tactical Retreats 3 | . 1 2 Traps | -11 -10 -9 ------- Run | Yrd Mat Mat Traps Triggered 1 | . 1 . Indirectly . | . . . Trap Hack Attempts . | . . . Triggered . | . . . Disarmed . | . . . Reprogrammed . | . . . Reused . | . . . Traps Extracted . | . . . Installed . | . . . Triggered . | . . . Machines | -11 -10 -9 ---------- Run | Yrd Mat Mat Machines Disabled . | . . . Max in Single Turn . | . . . Machines Repaired . | . . . Machines Dismantled . | . . . Machines Sabotaged . | . . . Overloaded Fab Kills . | . . . Hacking | -11 -10 -9 --------- Run | Yrd Mat Mat Machines Accessed . | . . . Terminals . | . . . Fabricators . | . . . Repair Stations . | . . . Recycling Units . | . . . Scanalyzers . | . . . Garrison Access . | . . . Total Hacks . | . . . Successful . | . . . Failed . | . . . Catastrophic . | . . . Database Lockouts . | . . . Manual . | . . . Terminals . | . . . Fabricators . | . . . Repair Stations . | . . . Recycling Units . | . . . Scanalyzers . | . . . Garrison Access . | . . . Terminal Hacks . | . . . Fabricator Hacks . | . . . Repair Station Hacks . | . . . Recycling Unit Hacks . | . . . Scanalyzer . | . . . Garrison Access Hacks . | . . . Unauthorized Hacks . | . . . Terminals . | . . . Fabricators . | . . . Repair Stations . | . . . Recycling Units . | . . . Scanalyzers . | . . . Garrison Access . | . . . Data Cores Recovered . | . . . Used . | . . . Hacking Detections . | . . . Full Trace Events . | . . . Feedback Events . | . . . Feedback Blocked . | . . . Robot Schematics Acquired . | . . . Robots Built . | . . . Authchips . | . . . Time . | . . . Total Robot Build Rating . | . . . Part Schematics Acquired . | . . . Parts Built . | . . . Authchips . | . . . Time . | . . . Total Part Build Rating . | . . . Parts Repaired . | . . . Time . | . . . Parts Recycled . | . . . Recycled Matter . | . . . Retrieved Matter . | . . . Retrieved Components . | . . . Parts Scanalyzed . | . . . Part Schematics Acquired . | . . . Parts Damaged . | . . . Bothacking | -11 -10 -9 ------------ Run | Yrd Mat Mat Used RIF Installer . | . . . Robots Hacked . | . . . Non-combat . | . . . Combat . | . . . Robot Hacks Applied . | . . . Relay Couplers Released . | . . . Fabnet Peak Effective % . | . . . Robots Rewired . | . . . Allies Hacked . | . . . Hacks Repelled . | . . . Allies | -11 -10 -9 -------- Run | Yrd Mat Mat Total Allies . | . . . Largest Group . | . . . Highest-Rated Group . | . . . Highest-Rated Ally . | . . . Total Orders . | . . . Ally Attacks . | . . . Total Damage . | . . . Kills . | . . . Allies Corrupted . | . . . Allies Melted . | . . . Intel | -11 -10 -9 ------- Run | Yrd Mat Mat Robot Analysis Total . | . . . Derelict Logs Recovered . | . . . Drone Launches . | . . . Drone Recoveries . | . . . Exploration | -11 -10 -9 ------------- Run | Yrd Mat Mat Turns Passed 1062 | 109 437 516 Spaces Moved 674 | 66 308 300 Core 57 | 9 . 48 Treads . | . . . Legs 617 | 57 308 252 Wheels . | . . . Hover . | . . . Flight . | . . . Fastest Speed 50 | 50 120 50 Average Speed 117 | 110 120 116 Slowest Speed 120 | 120 120 120 Overloaded Moves . | . . . Propulsion Burnouts . | . . . Robots Hopped . | . . . Cave-ins Triggered . | . . . Exploration Rate (%) 32 | 4 51 42 Regions Visited 2 Branch Regions . Pre-discovered Areas . | . . . Known Exits Taken . | . . . Unknown Exits Taken 2 | 1 1 . Scrap Searched . | . . . Spaces Dug . | . . . Terrain Destroyed 37 | . . 37 Melee . | . . . Projectile . | . . . AOE 37 | . . 37 Terrain Rammed . | . . . Walls Destroyed . | . . . Machines Disabled . | . . . Actions | -11 -10 -9 --------- Run | Yrd Mat Mat Total 810 | 89 338 383 Wait 4 | . . 4 Move 672 | 65 307 300 Hop . | . . . Pick Up 21 | 9 5 7 Fast Attach . | . . . Attach 15 | 7 . 8 Detach . | . . . Swap 10 | 1 3 6 Drop 3 | . 2 1 Fire 70 | 7 20 43 Melee 13 | . . 13 Ram . | . . . Kick 2 | . 1 1 Crush . | . . . Escape Stasis . | . . . Rewire . | . . . Trap . | . . . Miscellaneous . | . . . Route ------- -11/Scrapyard -10/Materials (discovered 2 exits: [*Mat x2]) -9/Materials (discovered 1 exit: [*Min]) History --------- Turn | Location | Event 28 | -11/Scrapyard | Discovered new exit (range 15) 110 | -11/Scrapyard | Entered Materials 262 | -10/Materials | Discovered new exit (range 9) 300 | -10/Materials | Build established: Mutant 322 | -10/Materials | Discovered new exit (range 15) 547 | -10/Materials | Entered another Materials area 547 | -9/Materials | Evolved 2 slots: Propulsion x1, Utility x1 818 | -9/Materials | Lost 3 parts (2u1w) 848 | -9/Materials | Core integrity fell below 50% 896 | -9/Materials | Discovered new exit (range 6) 1018 | -9/Materials | Core integrity fell below 20% 1026 | -9/Materials | Lost 8 parts (1p3n2u2w) 1063 | -9/Materials | Destroyed by Y-45 Defender with Heavy Assault Rifle Last Messages --------------- 00996_ R-06 Scavenger collects Sml. Storage Unit. 00996_ U-05 Engineer lays Concrete. 00997_ K-01 Serf cleans the Pressure Siphon. 00998_ U-05 Engineer lays Concrete. 01000_ U-05 Engineer builds a Wall. 01000_ U-05 Engineer lays Concrete. 01008_ U-05 Engineer builds a Wall. 01009_ U-05 Engineer lays Concrete. 01009_ K-01 Serf cleans the Pressure Siphon. 01014_ G-34 Mercenary destroyed. 01020_ Acquired 10 matter. 01021_ K-01 Serf collects debris. 01034_ Sensor Array destroyed. 01034_ Destroyed Sensor Array. 01046_ S-10 Pest destroyed. 01050_ Lgt. Ion Engine destroyed. 01055_ S-10 Pest suffers critical hit (Destroy). 01055_ Destroyed Flight Unit. 01056_ S-10 Pest destroyed. 01062_ Acquired 19 matter. Map ----- +----------------------------------------------------+ | # """" ######## ### # ##### " | | """" ########+### # ##?## " | | """" # ## # ##?## | | # ## "Y" # ##?###### | | + ## """ !# ##?###### | | # * ########## ##??????? | | #### ##############????## ##??????? | | #""" #??# #??#?## ##??????? | | #" #??# #????## ##??????? | | #"| #??# #????############??????? | | #"" < #??# #??#?############??????? | | #"| #??# #?#????????????????????? | | #" #??# ##?????????????????????? | | #""" #??# #??########????????????? | | #### ##??# #?"T" #????????????? | | #???# #? #????????????? | | % #?###### ### #????????????? | | #?# # ! #????????????? | | ### + #????????????? | | ## s[# """ """ #????????????? | | """ ## # # ##Y# """ ""???????????????? | | """ ## ######%#?""" "????????????????? | | """ ## #????#[#?#####????????????????? | | """ ## #????#%#??????????????????????? | | ## #????# #??????????????????????? | | ## #????#@#??????????????????????? | | ## ##???# #??????????????????????? | | %% """ ## #???#[#??????????????????????? | | % = * """ # *= #####+####???????????????????? | | # # """ # %[ =%* #???????????????????? | | # """ # =% ! #???????????????????? | | ### # """ #???????????????????? | | ??### #???????????????????? | | ????# # """ """ #???????????????????? | | ??####+######### # """ """ ????????????????????? | | ??# #???# # """ ""??????????????????????? | | ??# """ #???# # ??????????????????????? | | ??# """ #???# #?####????????????????????????? | | ??# """ #???# ?????????????????????????????? | | ??# #???# ????????????????????????????? | | ??# """ #???# ???????????????????????????? | | ??# """ #????###+###??????????????????????????? | | ??# """ #?????????????????????????????????????? | | ????? #?????????????????????????????????????? | | ?????#######?????????????????????????????????????? | | ?????????????????????????????????????????????????? | | ?????????????????????????????????????????????????? | | ?????????????????????????????????????????????????? | | ?????????????????????????????????????????????????? | | ?????????????????????????????????????????????????? | +----------------------------------------------------+ Best States ------------- Heat Dissipation 38 Energy Generation 10 Energy Capacity 250 Matter Stores 300 Matter Capacity 300 Sight Range 16 Robot Scan Range 14 Terrain Scan Range 16 Terrain Scan Density 10 Evasion (%) 55 Item Schematics ----------------- None Robot Schematics ------------------ None Fabricated ------------ Nothing Alien Tech Used ----------------- None Achievements -------------- None Challenges ------------ None Game ------ Seed CorruptionCouplerPendant Manual? 0 Play Time 00:22:22 Cumulative 57.9 hours Start 2024.07.10 @ 00:46:48 End 2024.07.10 @ 01:14:24 Sessions 1 Manual Loads 0 Difficulty Rogue Special Mode None Game No. 42 Rogue 28 Adventurer 14 Explorer 0 Win Type - Total 0 Types 0/0/0/0/0/0/0/0/0 Lore% 26 Gallery% 36 Achievement% 24 Wizard Run 0 Options --------- Layout 0 ASCII 0 Keyboard 0 Movement Mouse Keybinds 0 Fullscreen 2 Font 12/Smallcaps Map View 83x54 Zoom Use 15% Tactical HUD 1 Map Filters NONE Filters NONE Steam 1 RUN: 65b09b0b-dd9f-426b-a6f7-2c7798556847